bitfinex-derivatives/quotes_SOLF0:USTF0_20241024
["timestamp","ask_amount","ask_price","bid_price","bid_amount"]
[1729760392976,2.93798977,172.26,172.04,7.1382032]
[1729760392977,5.24,172.15,172.04,7.1382032]
[1729760393186,7.1382032,172.1,172.08,2.9079]
[1729760393582,7.1382032,172.1,172.05,1.2718]
[1729760393777,7.1382032,172.1,172.05,2.43394]
[1729760394186,7.1382032,172.08,172.05,1.16214]
[1729760394687,5.24,172.15,172.02,1.2718]
[1729760394688,5.24,172.15,172.02,8.4100032]
[1729760394887,7.1382032,172.1,172.02,2.37195]
[1729760395295,7.1382032,172.1,172.04,2.9087]
[1729760395602,7.1382032,172.1,172.02,9.5101532]
[1729760396092,7.1382032,172.1,172.02,2.37195]
[1729760396294,11.16991613,172.09,172.02,2.37195]
[1729760396682,11.16991613,172.09,172.04,2.9086]
[1729760396884,11.16991613,172.09,172.03,1.0999]
[1729760396885,14.02307147,172.09,172.03,1.0999]
[1729760397193,14.02307147,172.09,172.01,4.00913]
[1729760397498,14.02307147,172.09,172.01,4.07209]
[1729760397805,11.16991613,172.09,172.02,2.9089]
[1729760397996,11.16991613,172.09,172.01,1.16289]
[1729760398689,5.24,172.1,172.01,1.16289]
[1729760398886,16.40991613,172.12,172.02,1.2677]
[1729760399292,16.40991613,172.12,172.05,2.9084]
[1729760399487,16.40991613,172.12,172.02,2.43059]
[1729760400194,5.24,172.12,172.02,2.43059]
[1729760400497,11.16991613,172.14,172.02,13.60050613]
[1729760401196,11.16991613,172.14,172.02,2.43059]
[1729760401493,11.16991613,172.14,172.02,13.60050613]
[1729760401695,11.16991613,172.14,172.03,6.30873372]
[1729760401899,11.16991613,172.14,172.08,2.908]
[1729760403300,11.16991613,172.14,172.03,5.24]
[1729760403493,5.24,172.15,172.1,2.9077]
[1729760403698,5.24,172.15,172.04,11.16991613]
[1729760403899,5.24,172.15,172.05,1.2819]
[1729760404298,5.24,172.15,172.09,2.9078]
[1729760404499,5.24,172.15,172.09,1.16289]
[1729760404696,11.16991613,172.16,172.09,1.16289]
[1729760405003,16.40991613,172.16,172.09,1.16289]
[1729760406393,16.40991613,172.16,172.09,4.07059]
[1729760406694,16.40991613,172.16,172.09,1.16289]
[1729760407106,62.76,172.17,172.09,1.16289]
[1729760407295,62.78,172.27,172.09,12.33280613]
[1729760407498,11.16991613,172.24,172.12,11.16991613]
[1729760407802,11.16991613,172.24,172.12,12.33280613]
[1729760407997,11.16991613,172.24,172.13,1.1919]
[1729760408193,11.16991613,172.24,172.13,2.35479]
[1729760408498,5.24,172.24,172.14,11.16991613]
[1729760408699,5.24,172.25,172.15,5.24]
[1729760409205,5.24,172.27,172.17,11.16991613]
[1729760409403,5.24,172.27,172.19,11.16991613]
[1729760409594,11.16991613,172.31,172.26,2.905]
[1729760409799,5.24,172.3,172.2,7.7078]
[1729760409997,5.24,172.3,172.2,8.87069]
[1729760410194,5.24,172.3,172.26,2.9049]
[1729760410394,5.24,172.3,172.2,7.7078]
[1729760410703,5.24,172.32,172.27,2.9047]
[1729760411105,5.24,172.32,172.27,4.06759]
[1729760411500,5.24,172.32,172.27,1.16289]
[1729760411698,11.16991613,172.3,172.25,1.16289]
[1729760411905,11.16991613,172.3,172.2,2.4678]
[1729760411906,11.16991613,172.3,172.2,3.63069]
[1729760412403,11.16991613,172.3,172.26,2.9049]
[1729760412603,11.16991613,172.3,172.26,1.09993]
[1729760415306,11.16991613,172.3,172.26,4.00493]
[1729760418208,11.16991613,172.3,172.27,2.9047]
[1729760418507,11.16991613,172.32,172.26,1.09993]
[1729760418702,16.52991613,172.32,172.26,1.09993]
[1729760418902,5.36,172.32,172.29,2.9045]
[1729760419201,11.16991613,172.34,172.26,1.09993]
[1729760419397,16.52991613,172.34,172.26,1.09993]
[1729760419902,5.36,172.34,172.3,2.9042]
[1729760420403,5.36,172.34,172.3,4.00413]
[1729760420605,5.36,172.34,172.3,2.9042]
[1729760420807,5.36,172.34,172.31,2.904]
[1729760421117,5.36,172.34,172.26,2.34357]
[1729760421508,65.6633,172.36,172.27,1.1877]
[1729760421702,71.0233,172.36,172.27,1.1877]
[1729760422006,5.36,172.36,172.27,2.28757]
[1729760423115,2.9035,172.35,172.31,2.904]
[1729760423510,2.9035,172.35,172.31,4.00387]
[1729760424215,2.904,172.33,172.3,1.09987]
[1729760424513,11.16991613,172.34,172.27,2.28757]
[1729760424915,11.16991613,172.34,172.26,1.2437]
[1729760425108,11.16991613,172.34,172.26,2.34363]
[1729760425509,11.16991613,172.32,172.26,2.40493]
[1729760425704,14.07391613,172.32,172.28,2.9046]
[1729760425918,11.16991613,172.32,172.26,2.40493]
[1729760426116,11.16991613,172.32,172.26,1.16123]
[1729760426321,11.16991613,172.32,172.26,1.10006]
[1729760426511,11.16991613,172.32,172.26,1.16123]
[1729760426913,14.07401613,172.32,172.26,1.1]
[1729760427416,11.16991613,172.32,172.26,1.1]
[1729760427616,14.07391613,172.32,172.28,2.9045]
[1729760427824,14.07391613,172.32,172.28,4.0045]
[1729760428123,11.16991613,172.32,172.27,1.1]
[1729760428314,5.36,172.33,172.25,2.9051]
[1729760428315,2.9046,172.29,172.25,2.9051]
[1729760428513,11.16991613,172.26,172.21,1.16144]
[1729760428710,16.52991613,172.26,172.21,1.16144]
[1729760428914,2.9054,172.24,172.21,1.16144]
[1729760429217,11.16991613,172.23,172.21,1.16144]
[1729760429415,2.9057,172.22,172.21,1.16144]
[1729760429723,11.16991613,172.23,172.16,1.16144]
[1729760429905,2.9059,172.21,172.16,1.16144]
[1729760430108,11.16991613,172.21,172.16,1.16144]
[1729760430310,11.16991613,172.21,172.15,1.1]
[1729760430613,11.16991613,172.21,172.14,1.1]
[1729760431318,11.16991613,172.21,172.14,4.0069]
[1729760431713,11.16991613,172.21,172.14,1.1]
[1729760432619,11.16991613,172.21,172.15,2.9068]
[1729760433912,11.16991613,172.18,172.13,1.09996]
[1729760434120,11.16991613,172.18,172.08,17.74051613]
[1729760434320,5.36,172.17,172.11,1.16221]
[1729760434519,5.36,172.17,172.08,1.2106]
[1729760434719,5.36,172.17,172.08,2.31053]
[1729760434920,5.36,172.17,172.13,2.9071]
[1729760435326,5.36,172.17,172.08,2.31053]
[1729760435825,5.36,172.17,172.12,2.9073]
[1729760436726,5.36,172.17,172.11,1.09993]
[1729760437422,5.36,172.17,172.15,2.9068]
[1729760437725,5.36,172.17,172.14,1.09993]
[1729760437921,5.36,172.17,172.13,1.09993]
[1729760438236,11.16991613,172.16,172.1,1.09996]
[1729760438426,11.16991613,172.16,172.08,1.2106]
[1729760438632,11.16991613,172.16,172.1,2.9077]
[1729760438926,11.16991613,172.16,172.05,5.36]
[1729760439229,11.16991613,172.14,172.02,16.52991613]
[1729760439421,11.16991613,172.14,172.01,1.1755]
[1729760439422,11.16991613,172.12,172.01,1.1755]
[1729760439614,5.36,172.11,172.01,1.1755]
[1729760440121,5.36,172.11,172.05,2.9085]
[1729760440322,5.36,172.1,172.01,1.1755]
[1729760441023,5.36,172.1,172.05,2.9084]
[1729760441227,11.16991613,172.12,172.01,12.34541613]
[1729760441528,5.36,172.11,172.07,2.9082]
[1729760442614,5.36,172.11,172.08,2.908]
[1729760443324,5.38,172.12,172.1,2.9077]
[1729760443725,5.38,172.12,172.1,4.00763]
[1729760443925,5.38,172.15,172.1,4.00763]
[1729760444133,5.38,172.15,172.1,1.09993]
[1729760444330,5.38,172.15,172.12,2.9073]
[1729760444629,5.38,172.15,172.1,1.09993]
[1729760445331,5.38,172.15,172.1,4.00743]
[1729760446025,11.16991613,172.11,172.04,1.09993]
[1729760446224,11.16991613,172.11,171.92,5.8215]
[1729760446225,5.12,172.1,171.97,11.16991613]
[1729760446431,5.12,172.1,172.0,3.57279]
[1729760446628,5.12,172.1,172.03,2.9087]
[1729760446830,5.12,172.1,172.0,3.57279]
[1729760447223,5.12,172.1,172.03,2.9089]
[1729760447628,5.12,172.1,172.02,1.16289]
[1729760447933,5.12,172.1,172.04,2.9087]
[1729760448135,5.12,172.1,172.02,1.16289]
[1729760448334,11.16991613,172.05,171.95,1.2504]
[1729760448524,11.16991613,172.05,171.85,4.35752258]
[1729760448525,11.16991613,172.03,171.93,2.3789]
[1729760448832,11.16991613,172.03,171.93,3.54179]
[1729760449075,5.14,172.03,171.94,1.06921524]
[1729760449224,5.14,172.03,171.93,12.33280613]
[1729760449931,5.14,172.03,171.93,11.16991613]
[1729760450236,11.16991613,172.02,171.93,1.0999]
[1729760450737,11.16991613,172.02,171.93,1.16326]
[1729760451728,5.14,172.03,171.98,2.9096]
[1729760451930,5.14,172.06,171.94,11.16991613]
[1729760452229,5.14,172.06,171.95,5.14]
[1729760452434,11.16991613,172.05,171.95,5.14]
[1729760452828,11.16991613,172.05,172.0,2.9093]
[1729760453432,11.16991613,172.05,172.0,1.16326]
[1729760454327,11.16991613,172.05,171.99,1.16326]
[1729760454531,11.16991613,172.05,171.95,6.30326]
[1729760454731,11.16991613,172.05,171.98,2.9096]
[1729760455026,5.14,172.06,171.95,1.16326]
[1729760455228,11.16991613,172.05,171.95,1.16326]
[1729760457139,11.16991613,172.05,171.98,2.9097]
[1729760457340,11.16991613,172.05,171.95,1.16326]
[1729760458134,11.16991613,172.05,171.95,6.30326]
[1729760458645,5.14,172.06,171.95,6.30326]
[1729760458944,5.14,172.06,172.03,2.9088]
[1729760459539,5.14,172.06,172.03,4.07206]
[1729760459735,5.14,172.06,172.03,2.9088]
[1729760459936,5.14,172.06,172.02,1.16326]
[1729760460144,5.14,172.06,172.03,2.9089]
[1729760460344,73.94991613,172.1,172.02,1.16326]
[1729760460540,5.14,172.09,172.02,1.16326]
[1729760460839,5.14,172.09,172.06,2.9082]
[1729760461148,5.14,172.09,172.02,1.16326]
[1729760461439,5.14,172.09,172.07,2.9081]
[1729760461639,5.14,172.09,172.02,1.16326]
[1729760462042,11.16991613,172.07,172.02,1.16326]
[1729760462751,11.16991613,172.05,171.99,1.16326]
[1729760463042,11.16991613,172.05,172.0,2.9093]
[1729760463242,5.14,172.04,171.95,2.4924]
[1729760463439,5.14,172.04,171.95,3.65566]
[1729760463744,5.14,172.04,172.0,2.9093]
[1729760463943,5.14,172.04,171.95,3.65566]
[1729760464548,5.14,172.04,171.99,2.9094]
[1729760464737,5.14,172.04,171.95,3.65566]
[1729760465145,5.14,172.04,171.99,2.9094]
[1729760465335,5.14,172.04,171.95,3.65566]
[1729760465336,5.14,172.04,171.98,1.16326]
[1729760465648,5.14,172.04,171.97,4.07306]
[1729760465947,5.14,172.04,171.97,1.16326]
[1729760467151,11.16991613,172.05,171.97,1.16326]
[1729760467152,5.14,172.05,171.97,1.16326]
[1729760468552,5.14,172.05,171.99,2.9095]
[1729760468744,11.16991613,172.18,171.97,6.30326]
[1729760469054,11.16991613,172.1,171.97,17.47317613]
[1729760469247,5.14,172.09,172.05,2.9084]
[1729760469750,5.14,172.08,171.97,17.47317613]
[1729760470052,11.16991613,172.1,172.0,11.16991613]
[1729760470243,11.16991613,172.1,172.01,1.2862]
[1729760470640,11.16991613,172.1,172.08,2.9079]
[1729760470846,11.16991613,172.1,172.04,0.19996]
[1729760471042,5.14,172.11,172.04,0.19996]
[1729760471253,5.14,172.14,172.04,0.19996]
[1729760471557,5.14,172.14,172.07,2.9081]
[1729760471744,62.8,172.19,172.08,11.16991613]
[1729760471945,67.94,172.19,172.1,11.16991613]
[1729760472247,5.14,172.2,172.13,11.16991613]
[1729760473044,5.14,172.2,172.13,11.36987613]
[1729760473244,5.14,172.2,172.13,0.19996]
[1729760473449,5.14,172.2,172.11,3.6481]
[1729760473450,11.16991613,172.18,172.11,2.60756]
[1729760473640,11.16991613,172.18,172.13,2.9072]
[1729760474257,5.14,172.2,172.14,2.9069]
[1729760474446,5.14,172.2,172.11,2.4076]
[1729760474651,5.14,172.2,172.11,2.60756]
[1729760474854,5.14,172.2,172.15,2.9067]
[1729760475166,5.14,172.2,172.11,2.60756]
[1729760475352,5.14,172.2,172.15,2.9067]
[1729760475551,5.1,172.2,172.11,3.56964]
[1729760475748,188.76863153,172.21,172.11,3.56964]
[1729760475749,11.16991613,172.18,172.11,3.56964]
[1729760476250,11.16991613,172.16,172.11,3.56964]
[1729760476652,11.16991613,172.16,172.12,2.9072]
[1729760476954,11.16991613,172.16,172.12,4.06924]
[1729760477844,11.16991613,172.16,172.11,3.56964]
[1729760478252,16.26991613,172.16,172.11,3.56964]
[1729760478454,16.26991613,172.16,172.13,2.9071]
[1729760478650,16.26991613,172.16,172.11,3.56964]
[1729760478651,5.1,172.16,172.11,3.56964]
[1729760479456,5.1,172.16,172.15,2.9069]
[1729760480856,5.1,172.18,172.15,2.9069]
[1729760481154,5.1,172.18,172.16,2.9067]
[1729760481653,5.1,172.2,172.14,1.16204]
[1729760482051,5.1,172.2,172.17,2.9064]
[1729760483453,5.1,172.2,172.16,2.9065]
[1729760483653,5.1,172.2,172.14,1.16204]
[1729760484052,5.1,172.2,172.17,2.9064]
[1729760484249,5.1,172.2,172.11,2.4076]
[1729760484447,22.97035232,172.23,172.12,5.1]
[1729760484652,22.97035232,172.23,172.2,2.906]
[1729760484853,22.97035232,172.23,172.16,1.16204]
[1729760485450,62.8,172.29,172.16,1.16204]
[1729760485451,17.87035232,172.26,172.16,1.16204]
[1729760485658,5.1,172.25,172.16,1.16204]
[1729760485847,5.1,172.24,172.18,2.9063]
[1729760486053,5.1,172.24,172.16,1.16204]
[1729760486458,17.87035232,172.26,172.16,1.16204]
[1729760486654,5.1,172.25,172.16,1.16204]
[1729760487059,5.1,172.25,172.2,2.9059]
[1729760488166,5.1,172.25,172.18,2.9062]
[1729760488350,5.1,172.25,172.16,1.0999]
[1729760488664,2.9058,172.22,172.17,2.9064]
[1729760489059,5.1,172.25,172.17,2.9064]
[1729760489660,2.9058,172.22,172.17,2.9064]
[1729760490356,2.9058,172.22,172.18,2.9063]
[1729760491761,2.9055,172.23,172.19,2.9061]
[1729760493168,2.9055,172.23,172.16,1.09996]
[1729760493462,2.9055,172.23,172.18,2.9063]
[1729760493665,8.0052,172.25,172.16,1.09996]
[1729760493863,5.1,172.24,172.16,1.09996]
[1729760494066,5.1,172.24,172.2,2.9059]
[1729760494272,8.0054,172.24,172.2,2.9059]
[1729760494969,5.1,172.24,172.19,1.09996]
[1729760495867,17.87035232,172.23,172.11,2.4076]
[1729760496168,17.87035232,172.23,172.11,3.56974]
[1729760497459,2.9057,172.22,172.18,2.9062]
[1729760498764,17.87035232,172.23,172.14,1.16214]
[1729760498963,5.1,172.22,172.14,1.16214]
[1729760499365,17.87035232,172.2,172.14,1.16214]
[1729760499568,17.87035232,172.2,171.96,8.50513513]
[1729760499569,2.9073,172.13,172.08,4.07014]
[1729760499772,5.1,172.13,172.07,1.16214]
[1729760499962,17.87035232,172.12,172.03,2.4611]
[1729760500167,2.9077,172.1,172.05,2.9084]
[1729760500373,17.87035232,172.12,172.05,2.9084]
[1729760500870,17.87035232,172.12,172.07,2.9082]
[1729760501666,20.77785232,172.12,172.07,2.9082]
[1729760503275,17.87035232,172.12,172.04,1.16279]
[1729760503473,5.1,172.13,172.04,1.16279]
[1729760503666,5.1,172.13,172.05,1.2046]
[1729760503971,5.1,172.13,172.05,2.36739]
[1729760504363,5.1,172.13,172.09,2.9078]
[1729760504767,5.1,172.13,172.05,2.36739]
[1729760506172,5.1,172.13,172.09,2.9078]
[1729760509381,2.908,172.09,172.04,2.9087]
[1729760509575,5.1,172.13,172.03,3.62389]
[1729760509885,2.9075,172.12,172.07,2.9081]
[1729760510068,5.1,172.13,172.03,2.4611]
[1729760510267,11.16752678,172.12,172.03,3.5609]
[1729760510576,11.16752678,172.12,172.03,3.62382]
[1729760510781,2.9077,172.11,172.07,2.9082]
[1729760511472,14.07502678,172.12,172.07,2.9082]
[1729760513284,11.16752678,172.12,172.04,1.09987]
[1729760513866,11.16752678,172.12,172.05,2.9084]
[1729760514076,11.16752678,172.1,172.03,3.56097]
[1729760514270,11.16752678,172.07,172.0,1.2661]
[1729760514483,14.07582678,172.07,172.0,1.2661]
[1729760515478,14.07582678,172.07,172.0,2.36597]
[1729760515679,11.16752678,172.07,172.0,2.36597]
[1729760515874,11.16752678,172.07,172.03,2.9087]
[1729760516381,5.16,172.09,172.07,2.9081]
[1729760516574,5.16,172.09,172.03,1.09987]
[1729760517482,5.16,172.09,172.05,2.9085]
[1729760519374,11.16752678,172.12,172.03,1.09987]
[1729760519576,5.16,172.11,172.04,2.4764]
[1729760520083,5.16,172.11,172.04,3.57627]
[1729760520381,5.16,172.12,172.1,2.9077]
[1729760520579,5.16,172.12,172.04,3.57627]
[1729760520787,5.16,172.13,172.04,3.57627]
[1729760520987,5.16,172.13,172.06,2.9083]
[1729760521284,5.16,172.13,172.04,3.57627]
[1729760521674,5.16,172.13,172.1,2.9077]
[1729760522296,5.16,172.14,172.08,1.09987]
[1729760522584,5.16,172.14,172.05,11.16752678]
[1729760522770,5.16,172.14,172.1,2.9076]
[1729760524285,5.16,172.14,172.09,1.09987]
[1729760524681,5.16,172.14,172.07,1.09987]
[1729760524877,5.16,172.14,172.1,2.9077]
[1729760525475,11.16752678,172.12,172.07,1.09987]
[1729760525675,5.16,172.14,172.01,1.09977]
[1729760525676,11.16752678,172.09,172.01,1.09977]
[1729760525874,5.16,172.08,172.03,2.9087]
[1729760526087,5.16,172.08,172.01,1.16282]
[1729760526485,5.16,172.08,171.99,2.4301]
[1729760526687,5.16,172.08,171.99,3.59292]
[1729760527390,5.16,172.08,172.01,2.9092]
[1729760527694,11.16752678,172.04,171.93,11.16752678]
[1729760527882,5.16,172.03,171.93,11.16752678]
[1729760528189,11.16752678,172.02,171.91,1.16282]
[1729760528485,11.16752678,171.97,171.86,3.7505]
[1729760528679,5.16,171.96,171.86,4.91332]
[1729760528884,5.16,171.96,171.89,2.9111]
[1729760529083,5.16,171.96,171.86,3.7505]
[1729760529281,5.16,171.96,171.92,2.9107]
[1729760529788,5.16,171.96,171.86,4.91332]
[1729760529789,5.16,171.97,171.89,11.16752678]
[1729760530183,5.16,171.97,171.86,3.7505]
[1729760530888,23.05632112,171.97,171.86,3.7505]
[1729760531391,23.05632112,171.97,171.81,23.05632112]
[1729760531582,23.05632112,171.97,171.82,3.7284]
[1729760532186,23.05632112,171.97,171.82,21.62472112]
[1729760534179,17.89632112,171.97,171.82,21.62472112]
[1729760534379,5.34,171.96,171.82,22.78852112]
[1729760534690,5.34,171.96,171.9,2.9111]
[1729760535188,5.34,171.96,171.87,4.0754]
[1729760535384,5.34,171.96,171.87,1.1638]
[1729760535686,5.34,171.96,171.86,1.1638]
[1729760535883,5.34,171.96,171.89,2.9112]
[1729760537086,5.34,171.96,171.87,1.1638]
[1729760537390,5.34,171.96,171.86,1.1638]
[1729760537590,5.34,171.96,171.88,2.9113]
[1729760537787,5.34,171.96,171.86,1.1638]
[1729760537996,5.34,171.96,171.89,2.9113]
[1729760538193,5.34,171.96,171.86,1.1638]
[1729760538493,62.8,172.05,171.86,1.1638]
[1729760538494,62.8,172.05,171.9,2.9111]
[1729760538693,17.89632112,172.0,171.86,6.5038]
[1729760538893,5.34,171.99,171.86,6.5038]
[1729760539086,5.34,171.99,171.88,2.9113]
[1729760539289,17.89632112,171.93,171.82,3.7284]
[1729760539495,5.34,171.92,171.82,3.7284]
[1729760539688,5.34,171.92,171.82,4.8922]
[1729760540190,5.34,171.92,171.89,2.9111]
[1729760540403,5.34,171.95,171.85,23.23632112]
[1729760540591,5.34,171.97,171.85,23.23632112]
[1729760540797,5.34,171.97,171.88,2.9113]
[1729760540994,5.34,171.97,171.85,24.40012112]
[1729760541195,23.23632112,171.97,171.85,1.1638]
[1729760541592,23.23632112,171.97,171.89,2.9112]
[1729760542294,23.23632112,171.97,171.85,1.09977]
[1729760542802,23.23632112,171.97,171.87,2.9115]
[1729760543604,17.89632112,171.94,171.83,1.09974]
[1729760543901,23.23632112,171.97,171.82,2.5315]
[1729760543902,17.89632112,171.91,171.82,2.5315]
[1729760544102,5.34,171.9,171.82,2.5315]
[1729760544393,5.34,171.9,171.84,2.9121]
[1729760544797,5.34,171.9,171.82,2.5315]
[1729760545601,5.34,171.9,171.84,2.912]
[1729760546694,5.34,171.9,171.83,2.9122]
[1729760546893,17.89632112,171.88,171.83,2.9122]
[1729760547901,17.89632112,171.88,171.82,2.9123]
[1729760548704,5.34,171.9,171.79,1.09974]
[1729760548705,17.89632112,171.85,171.79,1.09974]
[1729760548897,5.34,171.84,171.79,1.09974]
[1729760549196,5.34,171.84,171.78,2.9131]
[1729760549394,5.34,171.84,171.76,1.2575]
[1729760549802,5.34,171.84,171.83,2.9123]
[1729760550297,17.89632112,171.89,171.85,2.9118]
[1729760550501,5.64,171.87,171.85,2.9118]
[1729760550708,5.64,171.87,171.77,3.54117]
[1729760551297,5.64,171.87,171.8,2.9124]
[1729760552405,62.86,171.92,171.76,1.09964]
[1729760552596,11.1898666,171.89,171.77,11.1898666]
[1729760553106,11.1898666,171.84,171.8,2.9123]
[1729760553407,5.64,171.83,171.76,1.09964]
[1729760553596,11.1898666,171.81,171.68,11.1898666]
[1729760553798,11.1898666,171.81,171.69,1.07062855]
[1729760553993,11.1898666,171.81,171.69,2.23510855]
[1729760554194,5.64,171.8,171.79,2.9127]
[1729760554700,5.64,171.82,171.75,1.16448]
[1729760554905,11.1898666,171.86,171.75,1.16448]
[1729760555108,16.8298666,171.86,171.75,1.16448]
[1729760555310,16.8298666,171.86,171.78,2.9128]
[1729760555508,11.1898666,171.83,171.75,1.16448]
[1729760555713,11.1898666,171.83,171.74,1.16448]
[1729760556999,5.64,171.86,171.7,2.5333]
[1729760557000,11.1898666,171.8,171.72,1.16448]
[1729760557302,5.64,171.79,171.7,3.69778]
[1729760557501,5.64,171.79,171.7,2.5333]
[1729760557702,5.64,171.79,171.7,3.63288]
[1729760558802,11.1898666,171.8,171.7,3.63288]
[1729760559000,5.64,171.81,171.72,11.1898666]
[1729760559198,5.64,171.83,171.73,2.27899809]
[1729760559402,5.64,171.83,171.73,1.2083]
[1729760559605,16.8298666,171.85,171.73,1.2083]
[1729760559806,16.8298666,171.85,171.74,1.07050586]
[1729760560004,16.8298666,171.85,171.73,2.30788]
[1729760561301,11.1898666,171.82,171.73,2.30788]
[1729760561705,11.1898666,171.82,171.78,2.9127]
[1729760562011,11.1898666,171.82,171.76,1.09977]
[1729760562711,11.1898666,171.82,171.8,2.9124]
[1729760563219,14.04726181,171.82,171.71,1.16444]
[1729760563517,11.1898666,171.77,171.7,2.5333]
[1729760563721,5.64,171.76,171.73,2.9135]
[1729760563917,5.64,171.76,171.7,2.5333]
[1729760564111,5.64,171.76,171.74,2.9134]
[1729760564421,5.64,171.76,171.7,3.63275]
[1729760564813,5.64,171.76,171.73,2.9136]
[1729760565317,5.64,171.76,171.71,2.914]
[1729760566225,5.64,171.76,171.7,2.5333]
[1729760566525,11.1898666,171.74,171.65,1.2864]
[1729760566713,11.1898666,171.74,171.65,4.91676]
[1729760567121,11.1898666,171.74,171.71,2.9139]
[1729760567715,11.1898666,171.74,171.72,2.9138]
[1729760567925,11.1898666,171.74,171.67,1.16451]
[1729760568726,11.1898666,171.74,171.71,2.9139]
[1729760569024,11.1898666,171.74,171.67,1.16451]
[1729760569619,11.1898666,171.74,171.72,2.9138]
[1729760570228,5.64,171.76,171.69,1.16451]
[1729760570427,11.1898666,171.74,171.65,4.98201]
[1729760570629,11.1898666,171.71,171.65,3.69561]
[1729760570824,11.1898666,171.71,171.63,1.16451]
[1729760571034,11.1898666,171.71,171.59,18.3520666]
[1729760571232,11.1898666,171.71,171.6,1.07110494]
[1729760571420,11.1898666,171.71,171.56,2.4461]
[1729760571421,11.1898666,171.66,171.56,2.4461]
[1729760571627,11.1898666,171.66,171.57,1.07146533]
[1729760571824,5.96,171.65,171.57,2.23597533]
[1729760572028,5.96,171.65,171.58,1.07146533]
[1729760572328,11.1898666,171.63,171.54,1.1655]
[1729760572627,11.1898666,171.63,171.55,1.07162385]
[1729760572930,11.1898666,171.63,171.56,1.07162671]
[1729760573127,11.1898666,171.63,171.55,1.09951]
[1729760573327,11.1898666,171.65,171.61,2.9157]
[1729760573530,11.1898666,171.65,171.52,11.1898666]
[1729760573531,5.96,171.64,171.52,11.1898666]
[1729760573824,11.1898666,171.62,171.58,2.9161]
[1729760574026,11.1898666,171.62,171.52,1.09945]
[1729760574227,5.96,171.64,171.52,1.09945]
[1729760574228,11.1898666,171.65,171.53,1.07174897]
[1729760574430,17.1498666,171.65,171.53,2.23741897]
[1729760574627,11.1898666,171.62,171.54,1.07174897]
[1729760574826,11.1898666,171.62,171.59,2.916]
[1729760575131,11.1898666,171.6,171.5,1.0]
[1729760575327,11.1898666,171.62,171.52,2.9171]
[1729760575328,11.1898666,171.55,171.52,2.9171]
[1729760575528,5.96,171.58,171.5,1.0]
[1729760575718,11.1898666,171.57,171.5,1.0]
[1729760575922,11.1898666,171.57,171.54,2.9169]
[1729760576230,5.96,171.58,171.5,1.0]
[1729760576231,11.1898666,171.55,171.5,1.0]
[1729760576425,11.1898666,171.55,171.51,2.9174]
[1729760576619,11.1898666,171.55,171.5,1.0]
[1729760577221,11.1898666,171.52,171.5,1.0]
[1729760577421,11.1898666,171.49,171.38,12.3897666]
[1729760577625,11.1898666,171.49,171.48,2.9179]
[1729760578026,11.1898666,171.52,171.38,12.3897666]
[1729760578230,17.1498666,171.52,171.4,11.1898666]
[1729760578421,2.94685557,171.65,171.42,11.1898666]
[1729760578621,11.1898666,171.53,171.5,2.9175]
[1729760578820,11.1898666,171.55,171.43,17.1498666]
[1729760579027,11.1898666,171.56,171.44,1.07235413]
[1729760579228,5.96,171.58,171.57,2.9164]
[1729760579428,65.8476481,171.68,171.48,5.96]
[1729760579621,5.96,171.67,171.49,2.27202654]
[1729760579828,11.1898666,171.64,171.5,12.26199314]
[1729760580125,5.96,171.67,171.51,11.1898666]
[1729760580126,11.1898666,171.63,171.51,11.1898666]